bitfinex/quotes_BTCUSD_20241120
["timestamp","ask_amount","ask_price","bid_price","bid_amount"]
[1732126407551,0.01,94132.0,94105.0,0.0804]
[1732126407552,0.10711512,94132.0,94105.0,0.0804]
[1732126407765,0.1,94141.0,94105.0,0.0804]
[1732126407976,0.1,94139.0,94105.0,0.0804]
[1732126408197,0.1,94137.0,94105.0,0.0804]
[1732126408419,0.10711512,94136.0,94105.0,0.0804]
[1732126410239,0.0008562,94142.0,94107.0,0.0485]
[1732126410485,0.0108562,94142.0,94108.0,0.10711512]
[1732126410726,0.0008562,94142.0,94108.0,0.10711512]
[1732126411616,0.0008562,94142.0,94109.0,0.00106246]
[1732126411830,0.0008562,94142.0,94114.0,0.0833]
[1732126412045,0.0008562,94142.0,94115.0,0.10711512]
[1732126412492,0.0008562,94142.0,94120.0,0.01]
[1732126412706,0.0008562,94142.0,94121.0,0.10711512]
[1732126416063,0.0008562,94142.0,94122.0,0.0766]
[1732126416293,0.0008562,94142.0,94123.0,0.10711512]
[1732126420470,0.002,94133.0,94087.0,0.023]
[1732126420683,0.002,94133.0,94111.0,0.10711512]
[1732126421111,0.01,94135.0,94111.0,0.10711512]
[1732126421323,0.01,94140.0,94112.0,0.0010624]
[1732126421537,0.0008562,94142.0,94113.0,0.10711512]
[1732126421727,0.01,94140.0,94114.0,0.00106232]
[1732126421939,0.01,94140.0,94115.0,0.10711512]
[1732126422860,0.012,94140.0,94115.0,0.10711512]
[1732126423487,0.012,94140.0,94116.0,0.0785]
[1732126423695,0.012,94140.0,94117.0,0.10711512]
[1732126424830,0.012,94140.0,94118.0,0.00106232]
[1732126425064,0.012,94140.0,94119.0,0.10711512]
[1732126425281,0.012,94140.0,94120.0,0.00106232]
[1732126425519,0.01,94140.0,94121.0,0.10711512]
[1732126425753,0.0008562,94142.0,94122.0,0.00106232]
[1732126425986,0.0008562,94142.0,94123.0,0.10711512]
[1732126426234,0.01,94140.0,94123.0,0.10711512]
[1732126426470,0.01,94140.0,94124.0,0.00106225]
[1732126426700,0.01,94140.0,94125.0,0.10711512]
[1732126427553,0.01,94140.0,94116.0,0.0785]
[1732126427754,0.02,94140.0,94116.0,0.0785]
[1732126427948,0.02,94140.0,94117.0,0.00106243]
[1732126427949,0.01,94137.0,94117.0,0.00106243]
[1732126428204,0.01,94140.0,94117.0,0.00106243]
[1732126428205,0.002,94134.0,94117.0,0.00106243]
[1732126428408,0.002,94133.0,94116.0,0.18561512]
[1732126428532,0.01,94140.0,94117.0,0.1081775]
[1732126429819,0.01,94140.0,94117.0,0.10711512]
[1732126434167,0.0108563,94140.0,94117.0,0.10711512]
[1732126434811,0.0008563,94140.0,94117.0,0.10711512]
[1732126435052,0.0108563,94140.0,94117.0,0.10711512]
[1732126436579,0.0008563,94140.0,94117.0,0.10711512]
[1732126436821,0.0008563,94140.0,94118.0,0.00106223]
[1732126437021,0.0008563,94140.0,94120.0,0.23011512]
[1732126437242,0.0008563,94140.0,94129.0,0.023]
[1732126437483,0.0008563,94140.0,94131.0,0.123]
[1732126437726,0.002,94130.0,94116.0,0.0795]
[1732126437934,0.002,94130.0,94103.0,0.0472]
[1732126437935,0.002,94117.0,94103.0,0.0472]
[1732126438141,0.002,94118.0,94104.0,0.10711512]
[1732126438401,0.002,94122.0,94104.0,0.10711512]
[1732126439303,0.002,94122.0,94105.0,0.1]
[1732126439513,0.002,94122.0,94103.0,0.0472]
[1732126439514,0.002,94122.0,94107.0,0.1]
[1732126439721,0.002,94122.0,94107.0,0.10711512]
[1732126439938,0.002,94122.0,94108.0,0.10106249]
[1732126440164,0.002,94121.0,94108.0,0.1]
[1732126440840,0.002,94114.0,94108.0,0.1]
[1732126441045,0.002,94114.0,94107.0,0.10711512]
[1732126441675,0.002,94118.0,94107.0,0.10711512]
[1732126441910,0.002,94108.0,94107.0,0.10711512]
[1732126442364,0.002,94114.0,94107.0,0.10711512]
[1732126442805,0.002,94114.0,94098.0,0.0795]
[1732126443033,0.002,94108.0,94097.0,0.0017124]
[1732126443258,0.002,94100.0,94097.0,0.0017124]
[1732126443471,0.002,94102.0,94097.0,0.0017124]
[1732126444448,0.01,94101.0,94097.0,0.0017124]
[1732126444699,0.02,94098.0,94097.0,0.0017124]
[1732126445420,0.12711512,94098.0,94097.0,0.0017124]
[1732126445638,0.12911512,94098.0,94097.0,0.0017124]
[1732126447192,0.25441512,94098.0,94097.0,0.0017124]
[1732126447407,0.27441512,94098.0,94097.0,0.0017124]
[1732126447619,0.022,94087.0,94086.0,0.0017126]
[1732126447839,0.12911512,94087.0,94086.0,0.0017126]
[1732126448360,0.21041512,94087.0,94086.0,0.0017126]
[1732126448548,0.0933,94087.0,94086.0,0.0017126]
[1732126448766,0.002,94087.0,94086.0,0.0017126]
[1732126449245,0.078,94108.0,94086.0,0.0017126]
[1732126449246,0.02034369,94093.0,94086.0,0.10882772]
[1732126449491,0.01,94105.0,94086.0,0.10882772]
[1732126449978,0.002,94094.0,94086.0,0.10882772]
[1732126450659,0.002,94094.0,94087.0,0.10817784]
[1732126450913,0.002,94098.0,94087.0,0.10817784]
[1732126451133,0.01998984,94094.0,94087.0,0.10817784]
[1732126451349,0.002,94098.0,94087.0,0.10817784]
[1732126451764,0.002,94098.0,94087.0,0.10711512]
[1732126452016,0.002,94098.0,94086.0,0.0017126]
[1732126452467,0.01,94088.0,94086.0,0.0017126]
[1732126452695,0.01,94087.0,94086.0,0.0017126]
[1732126453409,0.02,94087.0,94086.0,0.0017126]
[1732126454102,0.01,94087.0,94086.0,0.0017126]
[1732126454838,0.0297528,94087.0,94086.0,0.0017126]
[1732126455085,0.01,94087.0,94086.0,0.0017126]
[1732126455312,0.012,94087.0,94086.0,0.0017126]
[1732126456965,0.02007855,94087.0,94086.0,0.0017126]
[1732126457227,0.02207855,94087.0,94086.0,0.0017126]
[1732126457473,0.002,94087.0,94086.0,0.0017126]
[1732126458171,0.002,94088.0,94086.0,0.0017126]
[1732126458410,0.01999461,94090.0,94086.0,0.0017126]
[1732126458650,0.0774,94108.0,94088.0,0.1]
[1732126458651,0.002,94108.0,94088.0,0.1]
[1732126458870,0.002,94108.0,94089.0,0.15411512]
[1732126459093,0.002,94108.0,94090.0,0.1]
[1732126459336,0.002,94108.0,94092.0,0.1]
[1732126459570,0.002,94098.0,94094.0,0.1]
[1732126461434,0.002,94098.0,94093.0,0.10711512]
[1732126461878,0.002,94101.0,94093.0,0.10711512]
[1732126462344,0.002,94104.0,94093.0,0.10711512]
[1732126464023,0.002,94106.0,94093.0,0.10711512]
[1732126464259,0.02026851,94109.0,94095.0,0.0757]
[1732126464488,0.02026851,94109.0,94097.0,0.1]
[1732126464719,0.02026851,94109.0,94098.0,0.10711512]
[1732126464991,0.02026851,94109.0,94099.0,0.1]
[1732126465238,0.01,94130.0,94099.0,0.1]
[1732126465239,0.002,94130.0,94101.0,0.13011512]
[1732126465464,0.002,94131.0,94103.0,0.023]
[1732126465696,0.002,94131.0,94105.0,0.123]
[1732126465921,0.002,94131.0,94106.0,0.10817744]
[1732126466153,0.002,94131.0,94107.0,0.1]
[1732126466377,0.002,94131.0,94106.0,0.10817744]
[1732126466378,0.002,94131.0,94109.0,0.1]
[1732126466609,0.002,94131.0,94111.0,0.1]
[1732126466865,0.002,94131.0,94112.0,0.10711512]
[1732126467106,0.002,94131.0,94111.0,0.1]
[1732126467107,0.01,94129.0,94111.0,0.1]
[1732126467863,0.01,94129.0,94100.0,0.0465]
[1732126468099,0.01,94129.0,94102.0,0.1]
[1732126468325,0.01,94129.0,94103.0,0.10711512]
[1732126468554,0.002,94131.0,94104.0,0.10106246]
[1732126468782,0.002,94131.0,94106.0,0.1]
[1732126469012,0.02008349,94133.0,94108.0,0.1]
[1732126469013,0.002,94130.0,94108.0,0.1]
[1732126469262,0.0008563,94140.0,94108.0,0.1]
[1732126469263,0.0008563,94140.0,94115.0,0.20711512]
[1732126469495,0.0008563,94140.0,94119.0,0.10711512]
[1732126469724,0.0008563,94140.0,94120.0,0.123]
[1732126469963,0.0008563,94140.0,94121.0,0.10711512]
[1732126470188,0.0008562,94129.0,94122.0,0.123]
[1732126470427,0.0008562,94129.0,94123.0,0.10711512]
[1732126470651,0.0008562,94129.0,94124.0,0.123]
[1732126470881,0.0008562,94129.0,94126.0,0.1]
[1732126471096,0.0008562,94129.0,94128.0,0.1]
[1732126471379,0.0008562,94129.0,94128.0,0.20711512]
[1732126471843,0.0008562,94129.0,94111.0,0.023]
[1732126472079,0.0008562,94129.0,94118.0,0.1]
[1732126472546,0.0008562,94129.0,94119.0,0.00106235]
[1732126472783,0.0008562,94129.0,94118.0,0.1]
[1732126473014,0.0008562,94129.0,94091.0,0.1]
[1732126473248,0.0008562,94129.0,94103.0,0.1]
[1732126473483,0.002,94118.0,94104.0,0.10711512]
[1732126473730,0.002,94119.0,94105.0,0.1]
[1732126474038,0.002,94118.0,94106.0,0.10711512]
[1732126474293,0.002,94115.0,94106.0,0.10711512]
[1732126474517,0.002,94118.0,94106.0,0.10711512]
[1732126474753,0.002,94125.0,94106.0,0.10711512]
[1732126476529,0.002,94125.0,94091.0,0.1805]
[1732126476530,0.01,94123.0,94091.0,0.1805]
[1732126476761,0.01,94121.0,94093.0,0.1]
[1732126477016,0.01,94121.0,94094.0,0.10711512]
[1732126477256,0.01,94121.0,94095.0,0.1]
[1732126477476,0.002,94125.0,94082.0,0.08]
[1732126477477,0.012,94125.0,94097.0,0.1]
[1732126477683,0.012,94125.0,94099.0,0.1]
[1732126477918,0.01,94123.0,94100.0,0.10711512]
[1732126478608,0.002,94125.0,94100.0,0.10711512]
[1732126478851,0.0008562,94129.0,94077.0,0.0487]
[1732126478852,0.0008562,94129.0,94105.0,0.1]
[1732126479093,0.0008562,94129.0,94107.0,0.1]
[1732126479326,0.0008562,94129.0,94105.0,0.1]
[1732126479327,0.0008562,94129.0,94108.0,0.13011512]
[1732126479589,0.0008562,94129.0,94109.0,0.1]
[1732126479827,0.0008562,94129.0,94113.0,0.123]
[1732126480054,0.0008562,94129.0,94114.0,0.10711512]
[1732126480298,0.0008562,94129.0,94116.0,0.023]
[1732126480549,0.0008562,94129.0,94121.0,0.023]
[1732126480754,0.0008562,94129.0,94122.0,0.10711512]
[1732126480983,0.0008562,94129.0,94123.0,0.123]
[1732126481215,0.0008562,94129.0,94124.0,0.10711512]
[1732126481430,0.0008562,94129.0,94125.0,0.1]
[1732126481640,0.0008562,94129.0,94127.0,0.1]
[1732126481851,0.0008562,94129.0,94128.0,0.10711512]
[1732126482075,0.0008562,94129.0,94128.0,0.20711512]
[1732126487343,0.0008562,94129.0,94103.0,0.09611434]
[1732126487588,0.0008562,94129.0,94114.0,0.1]
[1732126487804,0.0008562,94129.0,94115.0,0.10711512]
[1732126488678,0.0008562,94129.0,94103.0,0.0196061]
[1732126488904,0.0809,94128.0,94103.0,0.10711512]
[1732126489149,0.0809,94128.0,94086.0,0.0017126]
[1732126489150,0.01,94122.0,94086.0,0.0017126]
[1732126489363,0.01,94122.0,94087.0,0.10711512]
[1732126489583,0.002,94108.0,94087.0,0.10711512]
[1732126489835,0.002,94108.0,94086.0,0.0017126]
[1732126489836,0.002,94098.0,94086.0,0.0017126]
[1732126490329,0.002,94104.0,94086.0,0.0017126]
[1732126490768,0.002,94102.0,94086.0,0.0017126]
[1732126490988,0.002,94106.0,94086.0,0.0017126]
[1732126491644,0.002,94106.0,94087.0,0.10711512]
[1732126491891,0.002,94111.0,94088.0,0.1]
[1732126492121,0.01969691,94113.0,94090.0,0.1]
[1732126492369,0.0809,94128.0,94092.0,0.1]
[1732126492581,0.002,94118.0,94094.0,0.1]
[1732126492787,0.002,94118.0,94095.0,0.10711512]
[1732126493004,0.002,94118.0,94096.0,0.1]
[1732126493347,0.002,94118.0,94098.0,0.1]
[1732126493432,0.002,94120.0,94098.0,0.1]
[1732126493639,0.002,94122.0,94100.0,0.1]
[1732126493851,0.002,94122.0,94101.0,0.10711512]
[1732126494074,0.002,94122.0,94102.0,0.1]
[1732126494294,0.002,94122.0,94103.0,0.10711512]
[1732126494579,0.002,94122.0,94104.0,0.1]
[1732126494802,0.10097647,94128.0,94104.0,0.1]
[1732126494803,0.002,94118.0,94105.0,0.10711512]
[1732126495046,0.002,94115.0,94105.0,0.10711512]
[1732126495489,0.002,94114.0,94105.0,0.10711512]
[1732126495718,0.002,94115.0,94105.0,0.10711512]
[1732126496176,0.002,94122.0,94105.0,0.10711512]
[1732126496650,0.002,94111.0,94086.0,0.0017126]
[1732126496856,0.002,94111.0,94088.0,0.1]
[1732126497116,0.002,94111.0,94086.0,0.0017126]
[1732126497117,0.002,94111.0,94090.0,0.1]
[1732126497367,0.0762,94109.0,94090.0,0.20711512]
[1732126497591,0.0762,94109.0,94092.0,0.1]
[1732126497808,0.002,94104.0,94094.0,0.1]
[1732126498491,0.002,94108.0,94094.0,0.1]
[1732126498710,0.0762,94109.0,94094.0,0.1]
[1732126499208,0.002,94108.0,94094.0,0.1]
[1732126499640,0.0762,94109.0,94094.0,0.1]
[1732126499857,0.0762,94109.0,94095.0,0.00106257]
[1732126500526,0.0762,94109.0,94094.0,0.1]
[1732126500527,0.0963095,94109.0,94094.0,0.1]
[1732126500971,0.002,94101.0,94094.0,0.1]
[1732126501477,0.002,94108.0,94094.0,0.1]
[1732126501690,0.0963095,94109.0,94094.0,0.1]
[1732126502111,0.002,94108.0,94094.0,0.1]
[1732126503072,0.002,94104.0,94094.0,0.1]
[1732126503297,0.002,94104.0,94086.0,0.0217302]
[1732126503298,0.01,94106.0,94086.0,0.0017126]
[1732126503536,0.002,94090.0,94086.0,0.0017126]
[1732126504014,0.002,94087.0,94086.0,0.0017126]
[1732126504473,0.0776,94087.0,94086.0,0.0017126]
[1732126505399,0.14936708,94087.0,94086.0,0.0017126]
[1732126505614,0.15936708,94087.0,94086.0,0.0017126]
[1732126505847,0.16936708,94087.0,94086.0,0.0017126]
[1732126506620,0.14936708,94087.0,94086.0,0.0017126]
[1732126506858,0.09946708,94087.0,94086.0,0.0017126]
[1732126507070,0.002,94093.0,94086.0,0.0017126]
[1732126507285,0.002,94087.0,94086.0,0.0017126]
[1732126507510,0.002,94097.0,94086.0,0.0017126]
[1732126507729,0.06474862,94099.0,94086.0,0.10882772]
[1732126507730,0.01954862,94099.0,94086.0,0.10882772]
[1732126507959,0.002,94090.0,94086.0,0.0017126]
[1732126508182,0.002,94097.0,94086.0,0.0017126]
[1732126508603,0.002,94093.0,94086.0,0.0017126]
[1732126509039,0.01,94101.0,94086.0,0.0017126]
[1732126509040,0.002,94087.0,94086.0,0.0017126]
[1732126509264,0.0795,94087.0,94086.0,0.0017126]
[1732126510207,0.0775,94087.0,94086.0,0.0017126]
[1732126510444,0.0795,94087.0,94086.0,0.0017126]
[1732126510684,0.0775,94087.0,94086.0,0.0017126]
[1732126510910,0.09989821,94087.0,94086.0,0.0017126]
[1732126511616,0.09789821,94087.0,94086.0,0.0017126]
[1732126511843,0.09989821,94087.0,94086.0,0.0017126]
[1732126512081,0.09789821,94087.0,94086.0,0.0017126]
[1732126512324,0.02239821,94087.0,94086.0,0.0017126]
[1732126513719,0.02039821,94087.0,94086.0,0.0017126]
[1732126514177,0.002,94091.0,94086.0,0.0017126]
[1732126514407,0.0894,94095.0,94086.0,0.0017126]
[1732126514408,0.02029661,94089.0,94086.0,0.0017126]
[1732126514654,0.002,94090.0,94086.0,0.0017126]
[1732126515378,0.002,94087.0,94086.0,0.0017126]
[1732126516546,0.01971288,94095.0,94086.0,0.0017126]
[1732126517009,0.002,94098.0,94086.0,0.0017126]
[1732126517511,0.002,94102.0,94087.0,0.10711512]
[1732126517792,0.002,94106.0,94087.0,0.10711512]
[1732126518516,0.002,94102.0,94087.0,0.10711512]
[1732126518731,0.002,94101.0,94087.0,0.10711512]
[1732126518953,0.0028561,94108.0,94088.0,0.10106263]
[1732126519194,0.0008561,94108.0,94090.0,0.1]
[1732126519435,0.0008561,94108.0,94092.0,0.1]
[1732126519701,0.0008561,94108.0,94086.0,0.02194179]
[1732126519702,0.0008561,94108.0,94094.0,0.1]
[1732126519943,0.0008561,94108.0,94087.0,0.0017122]
[1732126519944,0.0008561,94108.0,94096.0,0.1]
[1732126520159,0.0205936,94108.0,94097.0,0.10711512]
[1732126520409,0.0008561,94108.0,94097.0,0.10711512]
[1732126520629,0.0008561,94108.0,94098.0,0.10106247]
[1732126520853,0.0008561,94108.0,94100.0,0.1]
[1732126521091,0.0008561,94108.0,94102.0,0.1]
[1732126521312,0.0008561,94108.0,94103.0,0.10817753]
[1732126521544,0.0008561,94108.0,94104.0,0.1]
[1732126521780,0.0008561,94108.0,94105.0,0.10817753]
[1732126522465,0.0008561,94108.0,94105.0,0.10711512]
[1732126523653,0.0008561,94108.0,94106.0,0.00106241]
[1732126523886,0.0008561,94108.0,94107.0,0.20711512]
[1732126524788,0.0008561,94108.0,94107.0,0.39050026]
[1732126525008,0.0008561,94108.0,94107.0,0.41350026]
[1732126525231,0.0008561,94108.0,94107.0,0.38593442]
[1732126526207,0.0008561,94108.0,94107.0,0.48050867]
[1732126526428,0.0008562,94129.0,94108.0,0.123]
[1732126526698,0.0008562,94129.0,94124.0,0.10711512]
[1732126526892,0.42866014,94148.0,94127.0,0.10711512]
[1732126527127,0.42866014,94148.0,94131.0,0.1]
[1732126527381,0.0008555,94150.0,94137.0,0.20711512]
[1732126527622,0.0008555,94150.0,94140.0,0.1]
[1732126527841,0.0008555,94150.0,94142.0,0.1]
[1732126528074,0.0008555,94150.0,94144.0,0.1]
[1732126528308,0.0008555,94150.0,94146.0,0.1]
[1732126528566,0.0008555,94150.0,94148.0,0.1]
[1732126528785,0.0008555,94150.0,94137.0,0.10610586]
[1732126528786,0.0008555,94150.0,94149.0,0.20711512]
[1732126529031,0.0008555,94150.0,94149.0,0.1]
[1732126529507,0.0008555,94150.0,94138.0,0.10711512]
[1732126529730,0.0008555,94150.0,94139.0,0.1]
[1732126529960,0.0008555,94150.0,94141.0,0.1]
[1732126530190,0.0008555,94150.0,94142.0,0.10711512]
[1732126530424,0.0008555,94150.0,94143.0,0.1]
[1732126530672,0.0008555,94150.0,94145.0,0.1]
[1732126530893,0.0008555,94150.0,94146.0,0.10711512]
[1732126531116,0.0008555,94150.0,94147.0,0.1]
[1732126531360,0.0008555,94150.0,94148.0,0.10711512]
[1732126533531,0.0008555,94150.0,94137.0,0.02550586]
[1732126533774,0.002,94145.0,94116.0,0.1224]
[1732126533991,0.0108555,94150.0,94137.0,0.10711512]
[1732126534207,0.0108555,94150.0,94138.0,0.00106209]
[1732126534454,0.0008555,94150.0,94139.0,0.10711512]
[1732126534666,0.0008555,94150.0,94140.0,0.00106204]
[1732126534895,0.0008555,94150.0,94116.0,0.14674253]
[1732126534896,0.0008555,94150.0,94141.0,0.10711512]
[1732126535997,0.0008555,94150.0,94116.0,0.14674253]
[1732126535998,0.002,94149.0,94117.0,0.1]
[1732126536231,0.002,94149.0,94119.0,0.1]
[1732126536462,0.0008555,94150.0,94121.0,0.1]
[1732126536700,0.0008555,94150.0,94123.0,0.1]
[1732126536914,0.0008555,94150.0,94125.0,0.1]
[1732126537179,0.0008555,94150.0,94127.0,0.1]
[1732126537421,0.0008555,94150.0,94129.0,0.1]
[1732126537651,0.0008555,94150.0,94131.0,0.1]
[1732126537871,0.0008555,94150.0,94133.0,0.1]
[1732126538086,0.0008555,94150.0,94135.0,0.1]
[1732126538362,0.0008555,94150.0,94133.0,0.1]
[1732126538363,0.0008555,94150.0,94137.0,0.1]
[1732126538571,0.002,94149.0,94138.0,0.01959326]
[1732126539021,0.1248,94148.0,94138.0,0.01959326]
[1732126539231,0.1248,94148.0,94117.0,0.01959326]
[1732126539452,0.002,94142.0,94119.0,0.1]
[1732126539693,0.002,94142.0,94121.0,0.1]
[1732126539924,0.1248,94148.0,94121.0,0.1]
[1732126539925,0.002,94141.0,94123.0,0.1]
[1732126540168,0.002,94141.0,94125.0,0.1]
[1732126540414,0.002,94138.0,94127.0,0.1]
[1732126540650,0.002,94137.0,94127.0,0.1]
[1732126540882,0.002,94138.0,94127.0,0.1]
[1732126541110,0.002,94141.0,94127.0,0.1]
[1732126541800,0.002,94142.0,94128.0,0.0010622]
[1732126542302,0.002,94142.0,94127.0,0.20711512]
[1732126542303,0.002,94144.0,94127.0,0.20711512]
[1732126542541,0.002,94144.0,94128.0,0.0010622]
[1732126543411,0.002,94142.0,94128.0,0.0010622]
[1732126543860,0.002,94135.0,94127.0,0.20882592]
[1732126544094,0.001,94135.0,94127.0,0.20882592]
[1732126544311,0.0018777,94144.0,94129.0,0.1]
[1732126544529,0.0018777,94144.0,94130.0,0.00106218]
[1732126545486,0.0018777,94135.0,94129.0,0.1]
[1732126545704,0.0018777,94145.0,94129.0,0.1]
[1732126546135,0.0018777,94142.0,94129.0,0.1]
[1732126546806,0.0018777,94144.0,94129.0,0.1]
[1732126547256,0.0018777,94142.0,94129.0,0.099]
[1732126547579,0.0018777,94142.0,94127.0,0.0017108]
[1732126547983,0.0018777,94144.0,94127.0,0.0017108]
[1732126548220,0.0018777,94145.0,94128.0,0.00106218]
[1732126548658,0.1248,94148.0,94128.0,0.00106218]
[1732126548659,0.0018777,94144.0,94128.0,0.00106218]
[1732126548874,0.0018777,94145.0,94128.0,0.00106218]
[1732126549787,0.02610504,94150.0,94129.0,0.10711512]
[1732126550007,0.0008555,94150.0,94130.0,0.10106211]
[1732126550218,0.0008555,94150.0,94131.0,0.10711512]
[1732126550433,0.0008555,94150.0,94132.0,0.1010621]
[1732126551859,0.0018777,94149.0,94127.0,0.0017108]
[1732126552097,0.0018777,94144.0,94127.0,0.0017108]
[1732126552316,0.0008555,94150.0,94127.0,0.0017108]
[1732126552317,0.0018777,94131.0,94127.0,0.0017108]
[1732126553023,0.0018777,94135.0,94127.0,0.0017108]
[1732126553487,0.075,94136.0,94127.0,0.0017108]
[1732126553696,0.0018777,94135.0,94127.0,0.0017108]
[1732126554405,0.074922,94136.0,94127.0,0.0017108]
[1732126554634,0.07490116,94136.0,94127.0,0.0017108]
[1732126555573,0.49869409,94141.0,94128.0,0.00106225]
[1732126556241,0.49869409,94141.0,94127.0,0.0017108]
[1732126557142,0.52382806,94141.0,94127.0,0.0017108]
[1732126557573,0.52382806,94141.0,94128.0,0.00106222]
[1732126558266,0.52382806,94141.0,94129.0,0.20711512]
[1732126558509,0.49869409,94141.0,94129.0,0.20711512]
[1732126559794,0.49869409,94141.0,94130.0,0.00106217]
[1732126560025,0.49869409,94141.0,94131.0,0.10711512]
[1732126560244,0.49869409,94141.0,94132.0,0.10106217]
[1732126560484,0.49869409,94141.0,94133.0,0.10711512]
[1732126560736,0.49869409,94141.0,94134.0,0.1]
[1732126560976,0.49869409,94141.0,94136.0,0.1]
[1732126561202,0.49869409,94141.0,94137.0,0.10711512]
[1732126561439,0.49869409,94141.0,94138.0,0.1]
[1732126561686,0.49869409,94141.0,94140.0,0.1]
[1732126561912,0.49869409,94141.0,94140.0,0.20711512]
[1732126565680,0.49954949,94141.0,94140.0,0.20711512]
[1732126566351,0.49954949,94141.0,94140.0,0.20817722]
[1732126566577,0.45454949,94141.0,94140.0,0.20817722]
[1732126566787,0.45454949,94141.0,94140.0,0.20711512]
[1732126568625,0.0018777,94140.0,94136.0,0.0251267]
[1732126568844,0.45454949,94141.0,94136.0,0.0251267]
[1732126569100,0.45454949,94141.0,94129.0,0.0017108]
[1732126569528,0.45454949,94141.0,94130.0,0.0010622]
[1732126569761,0.45454949,94141.0,94135.0,0.1]
[1732126570670,0.45454949,94141.0,94130.0,0.0010622]
[1732126570922,0.45454949,94141.0,94132.0,0.1]
[1732126571157,0.45454949,94141.0,94134.0,0.1]
[1732126571372,0.45454949,94141.0,94138.0,0.09461252]
[1732126571627,0.45454949,94141.0,94140.0,0.19476432]
[1732126571857,0.45454949,94141.0,94140.0,0.30187944]
[1732126572088,0.45454949,94141.0,94140.0,0.20711512]
[1732126573467,0.45454949,94141.0,94140.0,0.3017632]
[1732126573743,0.45454949,94141.0,94140.0,0.20711512]
[1732126573925,0.45454949,94141.0,94140.0,0.30176426]
[1732126574346,0.45454949,94141.0,94140.0,0.20711512]
[1732126574786,0.45454949,94141.0,94140.0,0.30177846]
[1732126575024,0.45454949,94141.0,94140.0,0.3490339]
[1732126575259,0.45454949,94141.0,94140.0,0.20711512]
[1732126575499,0.45454949,94141.0,94140.0,0.1]
[1732126575720,0.45454949,94141.0,94139.0,0.1]
[1732126575946,0.45454949,94141.0,94137.0,0.0946791]
[1732126576175,0.45454949,94141.0,94138.0,0.1]
[1732126576657,0.45454949,94141.0,94127.0,0.2382421]
[1732126576658,0.45454949,94141.0,94136.0,0.0946791]
[1732126576890,0.45454949,94141.0,94127.0,0.0017108]
[1732126576891,0.0018777,94132.0,94129.0,0.12104364]
[1732126577150,0.0018777,94134.0,94129.0,0.02636454]
[1732126578753,0.0018777,94132.0,94129.0,0.02636454]
[1732126578967,0.0018777,94130.0,94129.0,0.02636454]
[1732126579216,0.0018777,94130.0,94129.0,0.0017108]
[1732126579912,0.0018777,94132.0,94129.0,0.0017108]
[1732126580157,0.1237,94140.0,94129.0,0.00277314]
[1732126580375,0.1237,94140.0,94129.0,0.0017108]
[1732126580376,0.01,94137.0,94129.0,0.0017108]
[1732126580597,0.1255777,94140.0,94131.0,0.09467588]
[1732126580812,0.45454949,94141.0,94134.0,0.09467588]
[1732126581052,0.45454949,94141.0,94137.0,0.09467588]
[1732126581277,0.0018777,94140.0,94138.0,0.09467588]
[1732126581535,0.45642719,94141.0,94135.0,0.19467588]
[1732126581790,0.0018777,94140.0,94137.0,0.09467588]
[1732126582009,0.45454949,94141.0,94137.0,0.09467588]
[1732126582010,0.45454949,94141.0,94139.0,0.09467588]
[1732126582251,0.45454949,94141.0,94137.0,0.14201382]
[1732126582252,0.45454949,94141.0,94140.0,0.09460264]
[1732126582468,0.45454949,94141.0,94138.0,0.1]
[1732126582677,0.45454949,94141.0,94140.0,0.1]
[1732126583131,0.45642719,94141.0,94140.0,0.1]
[1732126583597,0.45642719,94141.0,94130.0,0.09460264]
[1732126583842,0.45642719,94141.0,94134.0,0.1]
[1732126584093,0.45642719,94141.0,94134.0,0.20711512]
[1732126584333,0.45642719,94141.0,94134.0,0.19460264]
[1732126584581,0.45454949,94141.0,94137.0,0.09461698]
[1732126584809,0.45454949,94141.0,94140.0,0.09461698]
[1732126585069,0.45454949,94141.0,94139.0,0.09461698]
[1732126585313,0.45454949,94141.0,94123.0,0.28385096]
[1732126585314,0.45454949,94141.0,94138.0,0.19461698]
[1732126585552,0.45454949,94141.0,94138.0,0.1]
[1732126585987,0.45454949,94141.0,94138.0,0.19461698]
[1732126586293,0.45454949,94141.0,94136.0,0.14192548]
[1732126586294,0.45454949,94141.0,94136.0,0.09461698]
[1732126586524,0.45454949,94141.0,94138.0,0.19461698]
[1732126586963,0.45454949,94141.0,94139.0,0.1]
[1732126587201,0.45454949,94141.0,94140.0,0.19459033]
[1732126587650,0.45454949,94141.0,94140.0,0.1]
[1732126588374,0.45404949,94141.0,94137.0,0.1]
[1732126588610,0.0018777,94137.0,94133.0,0.09459033]
[1732126588839,0.45404949,94141.0,94133.0,0.09459033]
[1732126588840,0.0018777,94136.0,94133.0,0.09459033]
[1732126589050,0.0018777,94136.0,94132.0,0.09459033]
[1732126589263,0.0018777,94137.0,94132.0,0.19460123]
[1732126589715,0.45592719,94141.0,94132.0,0.19460123]
[1732126589986,0.45592719,94141.0,94136.0,0.0017108]
[1732126590642,0.45404949,94141.0,94136.0,0.0017108]
[1732126591799,0.0018777,94140.0,94136.0,0.0017108]
[1732126592271,0.45404949,94141.0,94136.0,0.0017108]
[1732126593926,0.0018777,94140.0,94136.0,0.0017108]
[1732126594626,0.0873777,94137.0,94136.0,0.0017108]
[1732126596262,0.0433777,94137.0,94136.0,0.0017108]
[1732126599331,0.0533777,94137.0,94136.0,0.0017108]
[1732126600718,0.02,94137.0,94136.0,0.0017108]
[1732126601650,0.01,94137.0,94136.0,0.0017108]
[1732126602080,0.02,94137.0,94136.0,0.0017108]
[1732126611201,0.12711512,94137.0,94136.0,0.0017108]
[1732126611451,0.19130112,94137.0,94136.0,0.0017108]
[1732126613392,0.084186,94137.0,94136.0,0.0017108]
[1732126613612,0.064186,94137.0,94136.0,0.0017108]
[1732126615213,0.27080112,94137.0,94136.0,0.0017108]